Workbook

Sheet Offsets assessment guide
AR1: Drop-down list inputs
B2: Offsets Assessment Guide | AR2: EPBC Status | AS2: Annual Probability of Extinction | AT2: Units | AU2: Factor relevant to case? | AW2: Quality | AX2: To Factor | AY2: Rank Options | AZ2: MNES Ranking
B3: For use in determining offsets under the Environment Protection and Biodiversity Conservation Act 1999
B4: 2012-10-02 | P4: Key to Cell Colours
B5: This guide relies on Macros being enabled in your browser. | P5: User input required | AR5: Critically Endangered | AS5: 0.068 | AT5: Count | AU5: Yes | AW5: 0 | AX5: Population Viability | AY5: N/A | AZ5: =IF(#REF!="","N/A",#REF!) -> 
AR6: Endangered | AS6: 0.012 | AT6: Adjusted hectares | AU6: No | AW6: 1 | AX6: Mortality Rate | AY6: 1 | AZ6: =IF(#REF!="","N/A",#REF!) -> 
B7: Matter of National Environmental Significance | P7: Drop-down list | AR7: Vulnerable | AS7: 0.002 | AT7: % Benchmark | AW7: 2 | AX7: Number of individuals | AY7: 2 | AZ7: =IF(#REF!="","N/A",#REF!) -> 
B8: Name | AR8: Other | AT8: % | AW8: 3 | AX8: Number of features | AY8: 3 | AZ8: =IF(#REF!="","N/A",#REF!) -> 
B9: EPBC Act status | D9: Endangered | G9: =IF(D9="Other","Other annual probability of extinction","") ->  | L9: =IF(D9="Other","Information source","") ->  | P9: Calculated output | AT9: Hectares | AW9: 4 | AX9: Condition of habitat | AY9: 4 | AZ9: =IF(#REF!="","N/A",#REF!) -> 
B10: Annual probability of extinction | D10: =IF(D9="Critically Endangered",AS5, IF(D9="Endangered",AS6, IF(D9="Other",G10, IF(D9="Vulnerable",AS7, "")))) -> 0.012 | AT10: Scale 0-10 | AW10: 5 | AX10: Area of habitat | AY10: 5 | AZ10: =IF(#REF!="","N/A",#REF!) -> 
B11: Based on IUCN category definitions | P11: Not applicable to attribute | AW11: 6 | AX11: Area of community | AY11: 6 | AZ11: =IF(#REF!="","N/A",#REF!) -> 
AW12: 7 | AY12: 7 | AZ12: =IF(#REF!="","N/A",#REF!) -> 
AW13: 8
AW14: 9
AW15: 10
B16: Impact calculator | O16: Offset calculator
B17: Impact calculator | C17: Protected matter attributes | E17: Attribute relevant to case? | F17: Description | G17: Quantum of impact | L17: Units | M17: Information source | O17: Offset calculator | P17: Protected matter attributes | R17: Attribute relevant to case? | S17: Total quantum of impact | U17: Units | V17: Proposed offset | W17: Time horizon (years) | Y17: Start area and quality | AA17: Future area and quality without offset | AC17: Future area and quality with offset | AE17: Raw gain | AF17: Confidence in result (%) | AG17: Adjusted gain | AH17: Net present value (adjusted hectares) | AJ17: % of impact offset | AK17: Minimum (90%) direct offset requirement met? | AL17: Cost ($ total) | AM17: Information source
C18: Ecological communities | P18: Ecological Communities
C19: Area of community | E19: No | G19: Area | L19: =IF(E19="Yes",AT9, IF(E19="No","","")) ->  | P19: Area of community | R19: No | S19: =IF(K21>=0.1,K21,IF(K21=0,"")) ->  | U19: =IF(R19="Yes",$AT6, IF(R19="No","","")) ->  | W19: Risk-related time horizon (max. 20 years) | Y19: Start area (hectares) | AA19: Risk of loss (%) without offset | AC19: Risk of loss (%) with offset | AE19: =IF(R19="No","",IF(R19="Yes",AD20-AB20)) ->  | AG19: =IF(R19="Yes",AE19*AF19, IF(R19="No","","")) ->  | AH19: =IF(R19="Yes",(AG19/(1+$D$10)^X19),IF(R19="No","","")) ->  | AI19: =IF(R19="Yes",((AH21/10)*AB20)+((AD21/10)*AH19),IF(R19="No","","")) ->  | AJ19: =IF(R19="Yes",(IF(K21>=0,AI19/K21,"")),IF(R19="No","","")) ->  | AK19: =IF(R19="Yes",IF(AJ19>=90%,"Yes","No"),"") -> 
G20: Quality | L20: =IF(E19="Yes",AT10, IF(E19="No","","")) ->  | AA20: Future area without offset (adjusted hectares) | AB20: =Z19*(1-AB19) -> 0 | AC20: Future area with offset (adjusted hectares) | AD20: =Z19*(1-AD19) -> 0
G21: Total quantum of impact | K21: =K19*(K20/10) -> 0 | L21: =IF(E19="Yes",AT6, IF(E19="No","","")) ->  | W21: Time until ecological benefit | Y21: Start quality (scale of 0-10) | AA21: Future quality without offset (scale of 0-10) | AC21: Future quality with offset (scale of 0-10) | AE21: =IF(R19="No","",IF(R19="Yes",AD21-AB21)) ->  | AG21: =IF(R19="Yes",AE21*AF21, IF(R19="No","","")) ->  | AH21: =IF(R19="Yes",(AG21/(1+$D$10)^X21),IF(R19="No","","")) -> 
C22: Threatened species habitat | P22: Threatened species habitat
C23: Area of habitat | E23: Yes | G23: Area | K23: 13.9 | L23: =IF(E23="Yes",AT9, IF(E23="No","","")) -> Hectares | P23: Area of habitat | R23: Yes | S23: =IF(K25>=0.1,K25,IF(K25=0,"")) -> 9.73 | U23: =IF(R23="Yes",$AT6, IF(R23="No","","")) -> Adjusted hectares | V23: 25 | W23: Time over which loss is averted (max. 20 years) | X23: 20 | Y23: Start area (hectares) | Z23: 52.5 | AA23: Risk of loss (%) without offset | AB23: 0.35 | AC23: Risk of loss (%) with offset | AD23: 0.05 | AE23: =IF(R23="No","",IF(R23="Yes",AD24-AB24)) -> 15.75 | AF23: 0.9 | AG23: =IF(R23="Yes",AE23*AF23, IF(R23="No","","")) -> 14.175 | AH23: =IF(R23="Yes",(AG23/(1+$D$10)^X23),IF(R23="No","","")) -> 11.16639065 | AI23: =IF(R23="Yes",((AH25/10)*AB24)+((AD25/10)*AH23),IF(R23="No","","")) -> 10.23949638 | AJ23: =IF(R23="Yes",(IF(K25>=0,AI23/K25,"")),IF(R23="No","","")) -> 1.052363451 | AK23: =IF(R23="Yes",IF(AJ23>=90%,"Yes","No"),"") -> Yes
G24: Quality | K24: 7 | L24: =IF(E23="Yes",AT10, IF(E23="No","","")) -> Scale 0-10 | AA24: Future area without offset (adjusted hectares) | AB24: =Z23*(1-AB23) -> 34.125 | AC24: Future area with offset (adjusted hectares) | AD24: =Z23*(1-AD23) -> 49.875
G25: Total quantum of impact | K25: =K23*(K24/10) -> 9.73 | L25: =IF(E23="Yes",AT6, IF(E23="No","","")) -> Adjusted hectares | W25: Time until ecological benefit | X25: 10 | Y25: Start quality (scale of 0-10) | Z25: 7 | AA25: Future quality without offset (scale of 0-10) | AB25: 6 | AC25: Future quality with offset (scale of 0-10) | AD25: 7 | AE25: =IF(R23="No","",IF(R23="Yes",AD25-AB25)) -> 1 | AF25: 0.8 | AG25: =IF(R23="Yes",AE25*AF25, IF(R23="No","","")) -> 0.8 | AH25: =IF(R23="Yes",(AG25/(1+$D$10)^X25),IF(R23="No","","")) -> 0.7100433461
C26: Protected matter attributes | E26: Attribute relevant to case? | F26: Description | G26: Quantum of impact | L26: Units | M26: Information source | P26: Protected matter attributes | R26: Attribute relevant to case? | S26: Total quantum of impact | U26: Units | V26: Proposed offset | W26: Time horizon (years) | Y26: Start value | AA26: Future value without offset | AC26: Future value with offset | AE26: Raw gain | AF26: Confidence in result (%) | AG26: Adjusted gain | AH26: Net present value | AJ26: % of impact offset | AK26: Minimum (90%) direct offset requirement met? | AL26: Cost ($ total) | AM26: Information source
C27: Number of features e.g. Nest hollows, habitat trees | E27: Yes | F27: Habitat trees | G27: 45 | L27: =IF(E27="Yes",$AT5, IF(E27="No","","")) -> Count | M27: Survey | P27: Number of features e.g. Nest hollows, habitat trees | R27: Yes | S27: =IF(G27>=0.1,G27,IF(G27="","")) -> 45 | U27: =IF(R27="Yes",$AT5, IF(R27="No","","")) -> Count | V27: 150 | W27: 20 | Y27: 150 | AA27: 0 | AC27: 150 | AE27: =IF(R27="No","",IF(R27="Yes",AC27-AA27)) -> 150 | AF27: 0.9 | AG27: =IF(R27="Yes",AE27*AF27, IF(R27="No","","")) -> 135 | AH27: =IF(R27="Yes",AG27/(1+$D$10)^W27, IF(R27="No","","")) -> 106.3465777 | AJ27: =IF(R27="Yes",(IF(G27>=0,AH27/G27,"")), IF(R27="No","","")) -> 2.363257281 | AK27: =IF(R27="Yes",IF(AJ27>=90%,"Yes","No"),"") -> Yes
C28: Condition of habitat Change in habitat condition, but no change in extent | E28: No | L28: =IF(E28="Yes",$AT7, IF(E28="No","","")) ->  | P28: Condition of habitat Change in habitat condition, but no change in extent | R28: No | S28: =IF(G28>=0.1,G28,IF(G28="","")) ->  | U28: =IF(R28="Yes",$AT7, IF(R28="No","","")) ->  | AE28: =IF(R28="No","",IF(R28="Yes",AC28-AA28)) ->  | AG28: =IF(R28="Yes",AE28*AF28, IF(R28="No","","")) ->  | AH28: =IF(R28="Yes",AG28/(1+$D$10)^W28, IF(R28="No","","")) ->  | AJ28: =IF(R28="Yes",(IF(G28>=0,AH28/G28,"")), IF(R28="No","","")) ->  | AK28: =IF(R28="Yes",IF(AJ28>=90%,"Yes","No"),"") -> 
C30: Threatened species | P30: Threatened species
C31: Birth rate e.g. Change in nest success | E31: No | L31: =IF(E31="Yes",$AT8, IF(E31="No","","")) ->  | P31: Birth rate e.g. Change in nest success | R31: No | S31: =IF(G31>=0.1,G31,IF(G31="","")) ->  | U31: =IF(R31="Yes",$AT8, IF(R31="No","","")) ->  | AE31: =IF(R31="No","",IF(R31="Yes",AC31-AA31)) ->  | AG31: =IF(R31="Yes",AE31*AF31, IF(R31="No","","")) ->  | AH31: =IF(R31="Yes",AG31/(1+$D$10)^W31, IF(R31="No","","")) ->  | AJ31: =IF(R31="Yes",(IF(G31>=0,AH31/G31,"")), IF(R31="No","","")) ->  | AK31: =IF(R31="Yes",IF(AJ31>=90%,"Yes","No"),"") -> 
C33: Mortality rate e.g Change in number of road kills per year | E33: No | L33: =IF(E33="Yes",$AT8, IF(E33="No","","")) ->  | P33: Mortality rate e.g Change in number of road kills per year | R33: No | S33: =IF(G33>=0.1,G33,IF(G33="","")) ->  | U33: =IF(R33="Yes",$AT8, IF(R33="No","","")) ->  | AE33: =IF(R33="No","",IF(R33="Yes",AA33-AC33)) ->  | AG33: =IF(R33="Yes",AE33*AF33, IF(R33="No","","")) ->  | AH33: =IF(R33="Yes",AG33/(1+$D$10)^W33, IF(R33="No","","")) ->  | AJ33: =IF(R33="Yes",(IF(G33>=0,AH33/G33,"")), IF(R33="No","","")) ->  | AK33: =IF(R33="Yes",IF(AJ33>=90%,"Yes","No"),"") -> 
C35: Number of individuals e.g. Individual plants/animals | E35: No | L35: =IF(E35="Yes",$AT5, IF(E35="No","","")) ->  | P35: Number of individuals e.g. Individual plants/animals | R35: No | S35: =IF(G35>=0.1,G35,IF(G35="","")) ->  | U35: =IF(R35="Yes",$AT5, IF(R35="No","","")) ->  | AE35: =IF(R35="No","",IF(R35="Yes",AC35-AA35)) ->  | AG35: =IF(R35="Yes",AE35*AF35, IF(R35="No","","")) ->  | AH35: =IF(R35="Yes",AG35/(1+$D$10)^W35, IF(R35="No","","")) ->  | AJ35: =IF(R35="Yes",(IF(G35>=0,AH35/G35,"")), IF(R35="No","","")) ->  | AK35: =IF(R35="Yes",IF(AJ35>=90%,"Yes","No"),"") -> 
O39: Summary
O40: Summary | P40: Protected matter attributes | R40: Quantum of impact | U40: Net present value of offset | V40: % of impact offset | W40: Direct offset adequate? | Z40: Cost ($)
Z41: Direct offset ($) | AB41: Other compensatory measures ($) | AD41: Total ($)
P42: Birth rate | R42: =G31 -> 0 | U42: =AH31 ->  | V42: =AJ31 ->  | W42: =IF(V42="","",IF(V42>=0.9,"Yes","No")) ->  | Z42: =AL31 -> 0 | AB42: =IF(V42="","",IF(V42>1,"N/A",IF(R42>=0,IF(V42>0,1/(V42/Z42^(1/3))^3-Z42,"N/A"),"0"))) ->  | AD42: =SUM(Z42:AC42) -> 0
P43: Mortality rate | R43: =G33 -> 0 | U43: =AH33 ->  | V43: =AJ33 ->  | Z43: =AL33 -> 0 | AD43: 0
P44: Number of individuals | R44: =G35 -> 0 | U44: =AH35 ->  | V44: =AJ35 ->  | Z44: =AL35 -> 0 | AD44: 0
P45: Number of features | R45: =G27 -> 45 | U45: =AH27 -> 106.3465777 | V45: =AJ27 -> 2.363257281 | W45: Yes | Z45: =AL27 -> 0 | AB45: N/A | AD45: =SUM(Z45:AC45) -> 0
P46: Condition of habitat | R46: =G28 -> 0 | U46: =AH28 ->  | V46: =AJ28 ->  | Z46: =AL28 -> 0 | AD46: 0
P47: Area of habitat | R47: =K25 -> 9.73 | U47: =AI23 -> 10.23949638 | V47: =AJ23 -> 1.052363451 | W47: Yes | Z47: =AL23 -> 0 | AB47: N/A | AD47: 0
P48: Area of community | R48: =K21 -> 0 | U48: =AI19 ->  | V48: =AJ19 ->  | Z48: =AL19 -> 0 | AD48: 0
Z49: =SUM(Z42:AA48) -> 0 | AB49: =SUM(AB42:AC48) -> 0 | AD49: =SUM(AD42:AD48) -> 0
